Cogmind - Beta 9.6 @@@ ROGUE MODE // 2020.07.25 @ 19:31:18 Player: Phillammon Result: Destroyed by G-47 Trooper with Particle Gun Performance ------------- Evolutions (0) 0 Regions Visited (2) 400 Robots Destroyed (15) 75 Value Destroyed (283) 283 Prototype IDs (0) 0 Alien Tech Used (0) 0 Bonus (0) 0 TOTAL SCORE: 758 Bonus ------- None Cogmind --------- Core Integrity 0/250 Matter 297/300 Energy 125/125 System Corruption 2% Temperature Cool (23) Movement Core (200) Ox3 Location -10/Mines Parts ------- > --- POWER (1) -------- Light Ion Engine > --- PROPULSION (2) --- (None) > --- UTILITY (2) ------ Medium Storage Unit > --- WEAPON (2) ------- Light Assault Rifle > --- INVENTORY (8) ---- Light Ion Engine Medium Storage Unit High-capacity Storage Unit Small Laser Light Assault Rifle Light Assault Rifle Light Assault Rifle Hammer Peak State ------------ > --- POWER ------------ Light Ion Engine > --- PROPULSION ------- Aluminum Leg Aluminum Leg > --- UTILITY ---------- Small Storage Unit > --- WEAPON ----------- Small Laser Assault Rifle > --- INVENTORY -------- Light Ion Engine Light Treads Compact Wheel Compact Wheel Assault Rifle [Rating: 6] Favorites ----------- Power Light Ion Engine Engine Light Ion Engine Propulsion Light Treads Treads Light Treads Leg Aluminum Leg Wheel Compact Wheel Utility Medium Storage Unit Storage Medium Storage Unit Weapon Assault Rifle Energy Gun Small Laser Ballistic Gun Assault Rifle Build | -11 -10 -10 ------- Run | Scr Mat Min Slots Evolved . | . . . Power . | . . . Propulsion . | . . . Utility . | . . . Weapon . | . . . Parts Attached 9 | 3 6 . Power 1 | . 1 . Engine 1 | . 1 . Core . | . . . Reactor . | . . . Propulsion 5 | 2 3 . Treads 3 | 1 2 . Leg . | . . . Wheel 2 | 1 1 . Hover . | . . . Flight . | . . . Utility 1 | . 1 . Device . | . . . Storage 1 | . 1 . Processor . | . . . Hackware . | . . . Protection . | . . . Artifact . | . . . Weapon 2 | 1 1 . Energy Gun . | . . . Energy Cannon . | . . . Ballistic Gun 2 | 1 1 . Ballistic Cannon . | . . . Launcher . | . . . Special Weapon . | . . . Impact Weapon . | . . . Slashing Weapon . | . . . Piercing Weapon . | . . . Special Melee Weapon . | . . . Unidentified Prototypes . | . . . Parts Lost 7 | . 4 3 Power 1 | . 1 . Propulsion 4 | . 2 2 Utility . | . . . Weapon 2 | . 1 1 Highest Loss Streak 3 | . 3 3 Average Slot Usage (%) 81 | . 78 84 Engine 13 | . 12 14 Treads 23 | . 18 27 Wheel 2 | . 6 . Storage 14 | . 14 14 Ballistic Gun 27 | . 26 28 Naked Turns . | . . . Heaviest Build 15 | 11 15 14 Greatest Support 40 | 20 40 40 Greatest Overweight (x) . | . . . Average Overweight (x) . | . . . Largest Inventory Capacity 8 | 6 8 8 Average Capacity 7 | 6 7 8 Most Carried 8 | 6 6 8 Average Carried 6 | 5 4 7 Final Capacity 8 | 6 8 8 Final Carried 8 | 4 5 8 Class Distribution -------------------- 100% | Mutant Dominant Class ---------------- Mutant | -10/Materials Mutant | -10/Mines Resources | -11 -10 -10 ----------- Run | Scr Mat Min Matter Collected 497 | 200 254 43 Remotely . | . . . Salvage Created 466 | . 449 17 Parts 31 | . 29 2 Haulers Intercepted 1 | . 1 . Recyclers Shooed . | . . . Parts Field Recycled . | . . . Retrieved Matter . | . . . Parts Self-Destructed . | . . . Prevented . | . . . Kills | -11 -10 -10 ------- Run | Scr Mat Min Combat Hostiles Destroyed 11 | . 10 1 Guns 11 | . 10 1 Classes Destroyed 5 | . 5 . Hauler 1 | . 1 . Recycler 1 | . 1 . Watcher 2 | . 2 . Swarmer 6 | . 5 1 Grunt 5 | . 5 . Best Kill Streak 8 | . 8 1 Combat Bots Only 4 | . 4 1 Max Kills in Single Turn 1 | . 1 1 Gunslinging . | . . . Exploded . | . . . Melee . | . . . Uniques/NPCs Destroyed . | . . . Combat | -11 -10 -10 -------- Run | Scr Mat Min Damage Taken 1026 | . 837 189 Core 251 | . 180 71 Absorbed by Shields . | . . . Core Remaining (%) 100 | 100 . . Volleys Fired 50 | . 42 8 Largest 2 | . 2 2 Hottest 40 | . 40 40 Shots Fired 88 | . 73 15 Gun 88 | . 73 15 Cannon . | . . . Launcher . | . . . Special . | . . . Kinetic 88 | . 73 15 Thermal . | . . . Explosive . | . . . Electromagnetic . | . . . Robot Hit Streak 6 | . 6 3 Robot Miss Streak 9 | . 9 2 Penetration Max . | . . . Secondary Targets 2 | . 2 . Max Gunslinging Chain 1 | . 1 . Shots Hit Robots 43 | . 35 8 Core Hits 23 | . 19 4 Critical Hits 1 | . 1 . Critical Kills . | . . . Critical Parts Destroyed 1 | . 1 . Melee Attacks . | . . . Impact . | . . . Slashing . | . . . Piercing . | . . . Sneak Attacks . | . . . Combat Hostiles . | . . . Follow-up Attacks . | . . . Damage Inflicted 581 | . 539 42 Guns 581 | . 539 42 Cannons . | . . . Explosions . | . . . Melee . | . . . Ramming . | . . . Kinetic 581 | . 539 42 Thermal . | . . . Explosive . | . . . Electromagnetic . | . . . Impact . | . . . Slashing . | . . . Piercing . | . . . Highest Corruption 2 | . 2 2 Average Corruption 2 | . 2 2 Corruption Purged . | . . . Effects 9 | . 7 2 Message Errors 1 | . 1 . Energy Discharges 1 | . 1 . Data Loss (minor) 2 | . 1 1 Targeting Errors 5 | . 4 1 Overload Shots . | . . . Overflow Damage . | . . . Projectiles . | . . . Explosions . | . . . Melee . | . . . Knockbacks . | . . . Impact . | . . . Kinetic . | . . . Secondary . | . . . Self-Inflicted Damage . | . . . Shots . | . . . Rammed . | . . . Targets Rammed . | . . . Kicked . | . . . Crushed . | . . . Highest Temperature 24 | . 6 24 Average Temperature 7 | . 3 11 Received Heat Transfer 378 | . 291 87 Siege Activations . | . . . Robots Corrupted . | . . . Combat Hostiles . | . . . Parts Fried . | . . . Impact Corruptions . | . . . Robots Melted . | . . . Combat Hostiles . | . . . Parts Melted . | . . . Heat Transferred . | . . . Parts Sabotaged . | . . . Parts Stolen . | . . . Parts Stripped . | . . . Power Chain Reactions . | . . . Missiles Intercepted . | . . . Alert | -11 -10 -10 ------- Run | Scr Mat Min Peak Influence 241 | . 241 113 Average Influence 118 | . 136 107 Maximum Alert Level 1 | . 1 . Low Security (%) 84 | 100 64 100 Level 1 15 | . 35 . Level 2 . | . . . Level 3 . | . . . Level 4 . | . . . Level 5 . | . . . High Security . | . . . Max Security . | . . . Squads Dispatched 1 | . 1 . Investigation . | . . . Extermination . | . . . Reinforcement 1 | . 1 . Assault . | . . . Garrison . | . . . Intercept . | . . . Construction Impeded . | . . . Haulers Reinforced . | . . . Stealth | -11 -10 -10 --------- Run | Scr Mat Min Distress Signals 1 | . 1 . Communications Jammed . | . . . Distress Signals . | . . . Times Spotted 17 | . 14 3 Peak Tracking Total 5 | . 5 2 Tactical Retreats . | . . . Traps | -11 -10 -10 ------- Run | Scr Mat Min Traps Triggered 1 | . 1 . Indirectly . | . . . Trap Hack Attempts . | . . . Triggered . | . . . Disarmed . | . . . Reprogrammed . | . . . Reused . | . . . Traps Extracted . | . . . Installed . | . . . Triggered . | . . . Machines | -11 -10 -10 ---------- Run | Scr Mat Min Machines Disabled . | . . . Max in Single Turn . | . . . Machines Sabotaged . | . . . Garrisons Compromised . | . . . Overloaded Fab Kills . | . . . Fab Network Shutdowns . | . . . Hacking | -11 -10 -10 --------- Run | Scr Mat Min Machines Accessed . | . . . Terminals . | . . . Fabricators . | . . . Repair Stations . | . . . Recycling Units . | . . . Scanalyzers . | . . . Garrison Access . | . . . Total Hacks . | . . . Successful . | . . . Failed . | . . . Catastrophic . | . . . Database Lockouts . | . . . Manual . | . . . Terminals . | . . . Fabricators . | . . . Repair Stations . | . . . Recycling Units . | . . . Scanalyzers . | . . . Garrison Access . | . . . Terminal Hacks . | . . . Fabricator Hacks . | . . . Repair Station Hacks . | . . . Recycling Unit Hacks . | . . . Scanalyzer . | . . . Garrison Access Hacks . | . . . Unauthorized Hacks . | . . . Terminals . | . . . Fabricators . | . . . Repair Stations . | . . . Recycling Units . | . . . Scanalyzers . | . . . Garrison Access . | . . . Data Cores Recovered . | . . . Used . | . . . Hacking Detections . | . . . Full Trace Events . | . . . Feedback Events . | . . . Feedback Blocked . | . . . Robot Schematics Acquired . | . . . Robots Built . | . . . Matter . | . . . Time . | . . . Total Robot Build Rating . | . . . Part Schematics Acquired . | . . . Parts Built . | . . . Matter . | . . . Time . | . . . Total Part Build Rating . | . . . Parts Repaired . | . . . Time . | . . . Parts Recycled . | . . . Recycled Matter . | . . . Retrieved Matter . | . . . Retrieved Components . | . . . Parts Scanalyzed . | . . . Part Schematics Acquired . | . . . Parts Damaged . | . . . Bothacking | -11 -10 -10 ------------ Run | Scr Mat Min Used RIF Installer . | . . . Robots Hacked . | . . . Non-combat . | . . . Combat . | . . . Robot Hacks Applied . | . . . Relay Couplers Released . | . . . Robots Rewired . | . . . Allies Hacked . | . . . Hacks Repelled . | . . . Allies | -11 -10 -10 -------- Run | Scr Mat Min Total Allies . | . . . Largest Group . | . . . Highest-Rated Group . | . . . Highest-Rated Ally . | . . . Total Orders . | . . . Ally Attacks . | . . . Total Damage . | . . . Kills . | . . . Allies Corrupted . | . . . Allies Melted . | . . . Intel | -11 -10 -10 ------- Run | Scr Mat Min Robot Analysis Total . | . . . Derelict Logs Recovered 1 | . . 1 Drone Launches . | . . . Drone Recoveries . | . . . Exploration | -11 -10 -10 ------------- Run | Scr Mat Min Turns Passed 704 | 11 301 392 Spaces Moved 361 | 3 128 230 Core . | . . . Treads 305 | . 75 230 Legs 1 | 1 . . Wheels 55 | 2 53 . Hover . | . . . Flight . | . . . Fastest Speed 100 | 100 100 160 Average Speed 150 | 106 135 160 Slowest Speed 160 | 120 160 160 Overloaded Moves . | . . . Propulsion Burnouts . | . . . Robots Hopped . | . . . Cave-ins Triggered . | . . . Exploration Rate (%) 24 | 2 32 39 Regions Visited 2 Branch Regions 1 Pre-discovered Areas 1 | . . 1 Known Exits Taken . | . . . Unknown Exits Taken 2 | 1 1 . Scrap Searched 1 | . . 1 Spaces Dug . | . . . Terrain Destroyed . | . . . Melee . | . . . Projectile . | . . . AOE . | . . . Actions | -11 -10 -10 --------- Run | Scr Mat Min Total 436 | 11 184 241 Wait . | . . . Move 359 | 2 127 230 Hop . | . . . Pick Up 12 | 2 7 3 Fast Attach . | . . . Attach 4 | . 4 . Detach . | . . . Swap 5 | 3 2 . Drop 6 | 4 2 . Fire 50 | . 42 8 Melee . | . . . Ram . | . . . Kick . | . . . Crush . | . . . Escape Stasis . | . . . Rewire . | . . . Trap . | . . . Miscellaneous . | . . . Route ------- -11/Scrapyard -10/Materials -10/Mines (discovered 1 exit: [*Mat]) History --------- Turn | Location | Event 3 | -11/Scrapyard | Discovered new exit (range 3) 12 | -11/Scrapyard | Entered Materials 213 | -10/Materials | Core integrity fell below 50% 240 | -10/Materials | Lost 3 parts (1p1n1w) 260 | -10/Materials | Discovered new exit (range 10) 306 | -10/Materials | Build established: Mutant 313 | -10/Materials | Entered Mines 336 | -10/Mines | Met a Derelict bent on vengeance 371 | -10/Mines | Found a hidden stash of uninstalled traps 397 | -10/Mines | Discovered new exit (range 13) 412 | -10/Mines | Learned location of Zion (-7) 700 | -10/Mines | Core integrity fell below 20% 705 | -10/Mines | Destroyed by G-47 Trooper with Particle Gun Last Messages --------------- 00397_ Found Lgt. Assault Rifle. 00397_ Found Hcp. Storage Unit. 00397_ Found Lrg. Storage Unit. 00397_ Found Heat Sink. 00397_ EXIT=FOUND 00398_ Acquired 22 matter. 00401_ System corrupted: Assault Rifle targeting data glitched. 00405_ Acquired Lgt. Assault Rifle. 00406_ S-10 Pest destroyed. 00412_ Acquired derelict log, extracted data. World map updated: -7/Zion. 00414_ Acquired 17 matter. 00417_ Acquired Lgt. Assault Rifle. 00418_ Acquired 4 matter. 00429_ R-06 Scavenger collects Flight Unit. 00435_ K-01 Serf collects debris. 00468_ Acquired Hcp. Storage Unit. 00524_ System corrupted: Component data lost. 00695_ Lgt. Treads destroyed. 00703_ Assault Rifle destroyed. Map ----- +----------------------------------------------------+ | ??????# ! ##?????????????????????? | | ??????### #### ###??????????????????????? | | ????????# #??# ##????????????????????????? | | ????????# #??## ##?????????????????????????? | | ????????#!#???###??????????????????????????? | | ????????# #?????????##?????????????????????? | | ????????# #????????# ##????????????????????? | | ????????# #???????# #????????????????????? | | ????????# #???#### #????????????????????? | | ????????# #??## #????????????????????? | | ????????# #### #?????????????????????? | | ????????# #??????????????????????? | | ????????###### #??????????????????????? | | ?????????????## & ##?????????????????????? | | ??????????????##&& #?????????????????????? | | ???????????????#& #?????????????????????? | | ???????????????# #?????????????????????? | | ??????????????## ##?????????????????????? | | ??????????????# ###??????????????????????? | | ?????????????## ##????????????????????????? | | ????????????## #?????????????????????????? | | ???????????## ##?????????????????????????? | | ??????????## #??????????????????????????? | | ?????###### #######????????????????????? | | ????## gg #????????????????????? | | ????# @ #????????????????????? | | ????# ### #????????????????????? | | ???## #?# #????????????????????? | | ???# ##?# #????????????????????? | | ???# ## ###??# #????????????????????? | | ???# ### #????# #????????????????????? | | ???# ##?# #????# #????????????????????? | | ???## #??# ###### #????????????????????? | | ???## ##??# ## #????????????????????? | | ???# ##???##### ## #????????????????????? | | ??## ##?????#### ## ##???????????????????? | | ?## #?????## ##??????????????????? | | ?# ###???# ### ###????????????????? | | ?# ##??# #?## ##???????????????? | | ?# #??## ##?# #???????????????? | | ?# #???# #### #???????????????? | | ?## #???# #### ##???????????????? | | ??# #???## #?######????????????????? | | ??# ##???## ##??????????????????????? | | ??# ##???## ####???????????????????? | | ??# #????## #???????????????????? | | ??# #?????# #???????????????????? | | ??# ##?????# #???????????????????? | | ??# ##?###### ##???????????????????? | | ??## ##??# ##????????????????????? | +----------------------------------------------------+ Best States ------------- Heat Dissipation 25 Energy Generation 10 Energy Capacity 125 Matter Stores 300 Matter Capacity 300 Sight Range 16 Terrain Scan Density 10 Evasion (%) 40 Recoil Reduction 2 Item Schematics ----------------- None Robot Schematics ------------------ None Fabricated ------------ Nothing Alien Tech Used ----------------- None Achievements -------------- None Challenges ------------ None Game ------ Seed ShrapnelThrusterDiverter Manual? 0 Play Time 00:06:17 Cumulative 13.7 hours Start 2020.07.25 @ 19:26:20 End 2020.07.25 @ 19:31:18 Sessions 1 Manual Loads 0 Difficulty Rogue Special Mode None Game No. 41 Rogue 41 Adventurer 0 Explorer 0 Win Type - Total 0 Types 0/0/0/0/0/0/0 Lore% 15 Gallery% 22 Achievement% 19 Wizard Run 0 Options --------- ASCII 0 Keyboard 0 Movement Mouse Keybinds 0 Fullscreen 1 Font 18/SmallcapsGlow Map View 76x50 Tactical HUD 1 Map Filters NONE Filters NONE Steam 0 RUN: 79df8577-bd88-4da8-8b54-aaab0941129c